Workbook

Sheet Annuitätentilgung
B2: Annuitätentilgung
C5: Anfangskapital | F5: 50,000.00
C6: Zinsen (pro Jahr) | F6: 7.50% | G6: pro Quartal: | I6: =F6/4 -> 1.875%
C7: Jahre | F7: 4 | G7: Quartale | I7: =F7*4 -> 16
C9: Annuität | F9: =PMT(I6,I7,F5)*-1 -> 3,646.14 €
B12: Periode | C12: Jahr | D12: Quartal | E12: Anfangs.k | F12: Annuität | G12: Zinsen | H12: Tilung | I12: End.k
B13: 1 | C13: X1 | D13: Q1 | E13: =F5 -> 50,000.00 | F13: =$F$9 -> 3,646.14 | G13: =E13*$I$6 -> 937.50 | H13: =F13-G13 -> 2,708.64 | I13: =E13-H13 -> 47,291.36
B14: =B13+1 -> 2 | C14: X1 | D14: Q2 | E14: =I13 -> 47,291.36 | F14: 3,646.14 | G14: 886.71 | H14: =F14-G14 -> 2,759.43 | I14: =E14-H14 -> 44,531.93
B15: =B14+1 -> 3 | C15: X1 | D15: Q3 | E15: =I14 -> 44,531.93 | F15: 3,646.14 | G15: 834.97 | H15: =F15-G15 -> 2,811.17 | I15: =E15-H15 -> 41,720.76
B16: 4 | C16: X1 | D16: Q4 | E16: 41,720.76 | F16: 3,646.14 | G16: 782.26 | H16: 2,863.88 | I16: 38,856.88
B17: 5 | C17: X2 | D17: Q1 | E17: 38,856.88 | F17: 3,646.14 | G17: 728.57 | H17: 2,917.58 | I17: 35,939.30
B18: 6 | C18: X2 | D18: Q2 | E18: 35,939.30 | F18: 3,646.14 | G18: 673.86 | H18: 2,972.28 | I18: 32,967.02
B19: 7 | C19: X2 | D19: Q3 | E19: 32,967.02 | F19: 3,646.14 | G19: 618.13 | H19: 3,028.01 | I19: 29,939.01
B20: 8 | C20: X2 | D20: Q4 | E20: 29,939.01 | F20: 3,646.14 | G20: 561.36 | H20: 3,084.79 | I20: 26,854.23
B21: 9 | C21: X3 | D21: Q1 | E21: 26,854.23 | F21: 3,646.14 | G21: 503.52 | H21: 3,142.63 | I21: 23,711.60
B22: 10 | C22: X3 | D22: Q2 | E22: 23,711.60 | F22: 3,646.14 | G22: 444.59 | H22: 3,201.55 | I22: 20,510.05
B23: 11 | C23: X3 | D23: Q3 | E23: 20,510.05 | F23: 3,646.14 | G23: 384.56 | H23: 3,261.58 | I23: 17,248.47
B24: 12 | C24: X3 | D24: Q4 | E24: 17,248.47 | F24: 3,646.14 | G24: 323.41 | H24: 3,322.73 | I24: 13,925.74
B25: 13 | C25: X4 | D25: Q1 | E25: 13,925.74 | F25: 3,646.14 | G25: 261.11 | H25: 3,385.03 | I25: 10,540.70
B26: 14 | C26: X4 | D26: Q2 | E26: 10,540.70 | F26: 3,646.14 | G26: 197.64 | H26: 3,448.50 | I26: 7,092.20
B27: 15 | C27: X4 | D27: Q3 | E27: 7,092.20 | F27: 3,646.14 | G27: 132.98 | H27: 3,513.16 | I27: 3,579.04
B28: 16 | C28: X4 | D28: Q4 | E28: 3,579.04 | F28: 3,646.14 | G28: 67.11 | H28: 3,579.04 | I28: -0.00
F29: =SUM(Tabelle1[Annuität]) -> 58,338.28 | G29: =SUM(Tabelle1[Zinsen]) -> 8,338.28 | H29: =SUBTOTAL(109,Tabelle1[Tilung]) -> 50,000.00
B31: Berechnungen für eine spezielle Periode
B33: Periode | D33: 8 | F33: Restschuld zu Beginn von Periode X | I33: =AK*((1+Zins)^PeriodenGesamt-(1+Zins)^(PeriodeX-1))/((1+Zins)^PeriodenGesamt-1) -> 29,939.01 | J33: =AnnTilg_RestSchuldBeginnPeriodeX(Zins,PeriodenGesamt,AK,PeriodeX)+(0*NOW()) -> 29,939.01
B34: AK | D34: =F5 -> 50,000.00 | F34: Zinsen im Periode X | I34: =ABS(PMT(Zins,PeriodenGesamt,AK))*(1-(1+Zins)^(PeriodeX-PeriodenGesamt-1)) -> 561.36 | J34: =AnnTilg_ZinsenPeriodeX(Zins,PeriodenGesamt,AK,PeriodeX)+(0*NOW()) -> 561.36
B35: Zinsen/Periode | D35: =I6 -> 1.875% | F35: Tilgung in Periode X | I35: =ABS(PMT(Zins,PeriodenGesamt,AK))*(1+Zins)^(PeriodeX-PeriodenGesamt-1) -> 3,084.79 | J35: =AnnTilg_TilgungPeriodeX(Zins,PeriodenGesamt,AK,PeriodeX)+(0*NOW()) -> 3,084.79
B36: Perioden | D36: =I7 -> 16
F37: Gesamtzinsen | I37: =Summe2("ABS(PMT(Zins;PeriodenGesamt;AK))*(1-(1+Zins)^(x-PeriodenGesamt-1))","x",1,PeriodenGesamt)+(0*NOW()) -> 8,338.28 | J37: =AnnTilg_GesamtZinsen(Zins,PeriodenGesamt,AK)+(0*NOW()) -> 8,338.28
A39: © Erhard Rainer - www.erhard-rainer.com
